Cogmind - Beta 10.2 @@@ ROGUE MODE // 2021.11.11 @ 20:32:29 Player: Grimrest Result: Destroyed by as-34716 with Assembled Heavy Rifle Performance ------------- Evolutions (0) 0 Regions Visited (4) 800 Robots Destroyed (35) 175 Value Destroyed (734) 734 Prototype IDs (26) 520 Alien Tech Used (0) 0 Bonus (300) 300 TOTAL SCORE: 2529 Bonus ------- Aligned with FarCom 300 Cogmind --------- Core Integrity 0/250 Matter 242/300 Energy 100/100 System Corruption 1% Temperature Cool (0) Movement Core (150) Ox2 Location -9/Mines Parts ------- > --- POWER (1) -------- (None) > --- PROPULSION (2) --- (None) > --- UTILITY (2) ------ Medium Storage Unit Improved Terrain Scan Processor > --- WEAPON (2) ------- (None) > --- INVENTORY (8) ---- Structural Scanner Advanced Visual Processing Unit Sensor Array Improved Terrain Scanner Hardened Medium Armor Plating Bomb Drone Bay Peak State ------------ > --- POWER ------------ Light Ion Engine > --- PROPULSION ------- Aluminum Leg Aluminum Leg > --- UTILITY ---------- Medium Storage Unit Improved Terrain Scan Processor > --- WEAPON ----------- Rocket Launcher Field Lobotomy Kit > --- INVENTORY -------- Structural Scanner Advanced Visual Processing Unit Sensor Array Improved Terrain Scanner Hardened Medium Armor Plating Bomb Drone Bay [Rating: 21] Favorites ----------- Power Light Ion Engine Engine Light Ion Engine Propulsion Aluminum Leg Treads Light Treads Leg Aluminum Leg Utility Medium Storage Unit Device Improved Terrain Scanner Storage Medium Storage Unit Processor Improved Terrain Scan Processor Protection Light Armor Plating Weapon Rocket Launcher Energy Gun Medium Laser Energy Cannon Beam Cannon Ballistic Gun Light Assault Rifle Launcher Rocket Launcher Special Weapon Field Lobotomy Kit Build | -11 -10 -10 -10 -9 ------- Run | Scr Mat Min Exi Min Slots Evolved . | . . . . . Power . | . . . . . Propulsion . | . . . . . Utility . | . . . . . Weapon . | . . . . . Parts Attached 32 | 7 15 7 1 2 Power 3 | 1 2 . . . Engine 3 | 1 2 . . . Core . | . . . . . Reactor . | . . . . . Propulsion 3 | 2 1 . . . Treads 1 | 1 . . . . Leg 2 | 1 1 . . . Wheel . | . . . . . Hover . | . . . . . Flight . | . . . . . Utility 11 | 2 7 2 . . Device 2 | . 1 1 . . Storage 3 | 2 1 . . . Processor 2 | . 1 1 . . Hackware . | . . . . . Protection 4 | . 4 . . . Artifact . | . . . . . Weapon 15 | 2 5 5 1 2 Energy Gun 7 | 1 3 2 . 1 Energy Cannon 3 | . 1 2 . . Ballistic Gun 1 | 1 . . . . Ballistic Cannon . | . . . . . Launcher 1 | . . 1 . . Special Weapon 3 | . 1 . 1 1 Impact Weapon . | . . . . . Slashing Weapon . | . . . . . Piercing Weapon . | . . . . . Special Melee Weapon . | . . . . . Unidentified Prototypes 1 | . . . 1 . Parts Lost 14 | . 6 2 . 6 Power 3 | . 2 . . 1 Propulsion 3 | . 1 . . 2 Utility . | . . . . . Weapon 8 | . 3 2 . 3 Highest Loss Streak 6 | . 3 1 . 6 Average Slot Usage (%) 89 | . 88 93 89 92 Engine 12 | . 10 14 14 12 Treads 4 | . 11 . . . Leg 22 | . 15 28 28 24 Storage 14 | . 14 14 14 14 Processor 9 | . 6 8 14 14 Protection 3 | . 5 3 . . Energy Gun 5 | . 8 6 . 4 Energy Cannon 3 | . 5 7 . . Ballistic Gun 2 | . 6 . . . Launcher 6 | . . 8 14 12 Special Weapon 2 | . 1 . 4 8 Naked Turns . | . . . . . Heaviest Build 23 | 14 20 20 23 23 Greatest Support 20 | 10 20 20 20 20 Greatest Overweight (x) 4 | 3 4 . 1 2 Average Overweight (x) . | . . . . . Largest Inventory Capacity 10 | 8 10 8 8 8 Average Capacity 7 | 6 7 8 8 8 Most Carried 8 | 4 8 8 8 8 Average Carried 6 | . 6 7 7 7 Final Capacity 8 | 8 8 8 8 8 Final Carried 8 | 3 8 7 7 7 Class Distribution -------------------- 87% | Mutant 12% | Scavenger-Mutant Dominant Class ---------------- Mutant | -10/Materials Mutant | -10/Mines Mutant | -10/Exiles Mutant | -9/Mines Resources | -11 -10 -10 -10 -9 ----------- Run | Scr Mat Min Exi Min Matter Collected 526 | 183 260 22 . 61 Remotely . | . . . . . Salvage Created 1233 | 90 677 344 . 122 Parts 72 | 7 40 18 . 7 Haulers Intercepted 1 | . 1 . . . Recyclers Shooed 3 | . 3 . . . Parts Field Recycled . | . . . . . Retrieved Matter . | . . . . . Parts Self-Destructed . | . . . . . Prevented . | . . . . . Kills | -11 -10 -10 -10 -9 ------- Run | Scr Mat Min Exi Min Combat Hostiles Destroyed 26 | . 16 4 . 6 Guns 11 | . 11 . . . Cannons 7 | . 5 2 . . AOE 8 | . . 2 . 6 Classes Destroyed 8 | 2 4 1 . 1 Worker 1 | . . 1 . . Tunneler 2 | 1 . 1 . . Hauler 1 | . 1 . . . Recycler 6 | 1 2 3 . . Watcher 2 | . 2 . . . Swarmer 8 | . 6 2 . . Grunt 15 | . 10 2 . 3 Assembled 3 | . . . . 3 Best Kill Streak 3 | 2 3 3 . 3 Combat Bots Only 3 | . 3 2 . 3 Max Kills in Single Turn 3 | 1 1 2 . 3 Gunslinging . | . . . . . Exploded 3 | . . 1 . 3 Melee . | . . . . . Uniques/NPCs Destroyed . | . . . . . Combat | -11 -10 -10 -10 -9 -------- Run | Scr Mat Min Exi Min Damage Taken 1428 | . 735 128 . 565 Core 260 | . 68 21 . 171 Absorbed by Shields . | . . . . . Core Remaining (%) 100 | 100 . . . . Volleys Fired 110 | 2 86 17 . 5 Largest 2 | 2 2 2 . 2 Hottest 115 | 70 115 105 . 73 Shots Fired 172 | 4 139 22 . 7 Gun 125 | 4 115 4 . 2 Cannon 34 | . 21 13 . . Launcher 8 | . . 5 . 3 Special 5 | . 3 . . 2 Kinetic 53 | 2 51 . . . Thermal 105 | 2 88 13 . 2 Explosive 8 | . . 5 . 3 Electromagnetic 4 | . . 4 . . Robot Hit Streak 15 | 3 15 3 . 4 Robot Miss Streak 4 | . 4 3 . 1 Penetration Max . | . . . . . Secondary Targets 2 | . 2 . . . Max Gunslinging Chain 1 | . 1 . . . Shots Hit Robots 108 | 3 89 14 . 2 Core Hits 63 | 3 35 13 . 12 Critical Hits . | . . . . . Critical Kills . | . . . . . Critical Parts Destroyed . | . . . . . Melee Attacks . | . . . . . Impact . | . . . . . Slashing . | . . . . . Piercing . | . . . . . Sneak Attacks . | . . . . . Combat Hostiles . | . . . . . Follow-up Attacks . | . . . . . Damage Inflicted 2017 | 39 1041 518 . 419 Guns 794 | 39 706 49 . . Cannons 438 | . 263 175 . . Explosions 708 | . . 294 . 414 Melee . | . . . . . Ramming 5 | . . . . 5 Kinetic 220 | 15 205 . . . Thermal 1115 | 24 836 213 . 42 Explosive 628 | . . 256 . 372 Electromagnetic 49 | . . 49 . . Impact . | . . . . . Slashing . | . . . . . Piercing . | . . . . . Highest Corruption 1 | . . . . 1 Average Corruption 1 | . . . . 1 Corruption Purged . | . . . . . Overload Shots . | . . . . . Overflow Damage 9 | . . 1 . 8 Projectiles . | . . . . . Explosions 9 | . . 1 . 8 Melee . | . . . . . Knockbacks . | . . . . . Impact . | . . . . . Kinetic . | . . . . . Secondary . | . . . . . Self-Inflicted Damage 37 | . . 18 . 19 Shots 2 | . . 1 . 1 Rammed 4 | . . . . 4 Targets Rammed 4 | . . . . 4 Kicked . | . . . . . Crushed . | . . . . . Highest Temperature 224 | 30 224 224 . 12 Average Temperature 76 | 18 78 73 . 7 Received Heat Transfer 427 | . 294 27 . 106 Effects 1 | . 1 . . . Interference 1 | . 1 . . . Siege Activations . | . . . . . Robots Corrupted . | . . . . . Combat Hostiles . | . . . . . Parts Fried . | . . . . . Impact Corruptions . | . . . . . Robots Melted . | . . . . . Combat Hostiles . | . . . . . Parts Melted 5 | . 5 . . . Heat Transferred 2668 | 74 2111 433 . 50 Parts Sabotaged . | . . . . . Parts Stolen . | . . . . . Parts Stripped . | . . . . . Power Chain Reactions 1 | . . 1 . . Missiles Intercepted . | . . . . . Alert | -11 -10 -10 -10 -9 ------- Run | Scr Mat Min Exi Min Peak Influence 244 | 10 244 175 . 100 Initial 75 | . 6 75 . . Average 105 | 3 126 73 . 79 Maximum Alert Level 1 | . 1 . . . Low Security (%) 91 | 100 87 100 . 100 Level 1 8 | . 12 . . . Level 2 . | . . . . . Level 3 . | . . . . . Level 4 . | . . . . . Level 5 . | . . . . . High Security . | . . . . . Max Security . | . . . . . Squads Dispatched 6 | . 5 1 . . Investigation 2 | . 1 1 . . Extermination . | . . . . . Reinforcement 4 | . 4 . . . Assault . | . . . . . Garrison . | . . . . . Intercept . | . . . . . Construction Impeded . | . . . . . Haulers Reinforced . | . . . . . Stealth | -11 -10 -10 -10 -9 --------- Run | Scr Mat Min Exi Min Distress Signals 3 | . 3 . . . Communications Jammed . | . . . . . Distress Signals . | . . . . . Times Spotted 57 | . 34 6 . 17 Peak Tracking Total 14 | . 5 3 . 14 Tactical Retreats 5 | . 2 1 . 2 Traps | -11 -10 -10 -10 -9 ------- Run | Scr Mat Min Exi Min Traps Triggered 1 | . 1 . . . Indirectly . | . . . . . Trap Hack Attempts . | . . . . . Triggered . | . . . . . Disarmed . | . . . . . Reprogrammed . | . . . . . Reused . | . . . . . Traps Extracted . | . . . . . Installed . | . . . . . Triggered . | . . . . . Machines | -11 -10 -10 -10 -9 ---------- Run | Scr Mat Min Exi Min Machines Disabled 2 | . . . . 2 Max in Single Turn 2 | . . . . 2 Machines Sabotaged . | . . . . . Garrisons Compromised . | . . . . . Overloaded Fab Kills . | . . . . . Fab Network Shutdowns . | . . . . . Hacking | -11 -10 -10 -10 -9 --------- Run | Scr Mat Min Exi Min Machines Accessed 15 | . 8 2 5 . Terminals 5 | . 5 . . . Fabricators . | . . . . . Repair Stations 1 | . 1 . . . Recycling Units 2 | . 2 . . . Scanalyzers . | . . . . . Garrison Access . | . . . . . Total Hacks 78 | . 26 2 50 . Successful 69 | . 17 2 50 . Failed 7 | . 7 . . . Catastrophic 1 | . 1 . . . Database Lockouts 2 | . 2 . . . Manual 1 | . . . 1 . Terminals 21 | . 21 . . . Fabricators . | . . . . . Repair Stations 2 | . 2 . . . Recycling Units 3 | . 3 . . . Scanalyzers . | . . . . . Garrison Access . | . . . . . Terminal Hacks 64 | . 12 2 50 . Record 54 | . 5 . 49 . Prototype ID Bank 1 | . 1 . . . Open Door 2 | . . 2 . . Emergency Access Points 1 | . 1 . . . Terminal Index 1 | . 1 . . . Alert Level 1 | . 1 . . . Dispatch Records 1 | . 1 . . . Maintenance Status 1 | . 1 . . . Zone Layout 1 | . 1 . . . EX-Prototype ID Bank 1 | . . . 1 . Fabricator Hacks . | . . . . . Repair Station Hacks 2 | . 2 . . . Scan Component 1 | . 1 . . . Repair 1 | . 1 . . . Recycling Unit Hacks 3 | . 3 . . . Process 1 | . 1 . . . Report Inventory 1 | . 1 . . . Retrieve Components 1 | . 1 . . . Scanalyzer . | . . . . . Garrison Access Hacks . | . . . . . Unauthorized Hacks . | . . . . . Terminals . | . . . . . Fabricators . | . . . . . Repair Stations . | . . . . . Recycling Units . | . . . . . Scanalyzers . | . . . . . Garrison Access . | . . . . . Data Cores Recovered . | . . . . . Used . | . . . . . Hacking Detections 6 | . 6 . . . Full Trace Events 1 | . 1 . . . Feedback Events . | . . . . . Feedback Blocked . | . . . . . Robot Schematics Acquired . | . . . . . Robots Built . | . . . . . Matter . | . . . . . Time . | . . . . . Total Robot Build Rating . | . . . . . Part Schematics Acquired . | . . . . . Parts Built . | . . . . . Matter . | . . . . . Time . | . . . . . Total Part Build Rating . | . . . . . Parts Repaired 1 | . 1 . . . Time 26 | . 26 . . . Parts Recycled . | . . . . . Recycled Matter 199 | . 199 . . . Retrieved Matter . | . . . . . Retrieved Components 10 | . 10 . . . Parts Scanalyzed . | . . . . . Part Schematics Acquired . | . . . . . Parts Damaged . | . . . . . Bothacking | -11 -10 -10 -10 -9 ------------ Run | Scr Mat Min Exi Min Used RIF Installer . | . . . . . Robots Hacked . | . . . . . Non-combat . | . . . . . Combat . | . . . . . Robot Hacks Applied . | . . . . . Relay Couplers Released . | . . . . . Robots Rewired . | . . . . . Allies Hacked . | . . . . . Hacks Repelled . | . . . . . Allies | -11 -10 -10 -10 -9 -------- Run | Scr Mat Min Exi Min Total Allies 1 | . . . . 1 Largest Group . | . . . . . Highest-Rated Group . | . . . . . Highest-Rated Ally . | . . . . . Total Orders . | . . . . . Ally Attacks . | . . . . . Total Damage . | . . . . . Kills . | . . . . . Allies Corrupted . | . . . . . Allies Melted . | . . . . . Field Lobotomies 1 | . . . . 1 Intel | -11 -10 -10 -10 -9 ------- Run | Scr Mat Min Exi Min Robot Analysis Total . | . . . . . Derelict Logs Recovered 2 | . . 1 . 1 Drone Launches . | . . . . . Drone Recoveries . | . . . . . Exploration | -11 -10 -10 -10 -9 ------------- Run | Scr Mat Min Exi Min Turns Passed 3667 | 68 1548 639 1204 208 Spaces Moved 2422 | 39 833 480 938 132 Core 24 | 14 3 . . 7 Treads 392 | . 392 . . . Legs 2006 | 25 438 480 938 125 Wheels . | . . . . . Hover . | . . . . . Flight . | . . . . . Fastest Speed 50 | 50 120 120 120 120 Average Speed 134 | 117 150 120 127 139 Slowest Speed 250 | 200 250 120 150 180 Overloaded Moves . | . . . . . Propulsion Burnouts . | . . . . . Robots Hopped . | . . . . . Cave-ins Triggered . | . . . . . Exploration Rate (%) 62 | 3 92 86 93 37 Regions Visited 4 Branch Regions 3 Pre-discovered Areas 1 | . . . 1 . Known Exits Taken 1 | . . . 1 . Unknown Exits Taken 3 | 1 1 1 . . Scrap Searched 1 | . . 1 . . Spaces Dug . | . . . . . Terrain Destroyed 92 | . . 48 . 44 Melee . | . . . . . Projectile . | . . . . . AOE 92 | . . 48 . 44 Terrain Rammed . | . . . . . Walls Destroyed . | . . . . . Machines Disabled . | . . . . . Actions | -11 -10 -10 -10 -9 --------- Run | Scr Mat Min Exi Min Total 2667 | 57 998 525 943 144 Wait 43 | . 38 1 4 . Move 2418 | 38 832 479 937 132 Hop . | . . . . . Pick Up 41 | 10 19 10 1 1 Fast Attach . | . . . . . Attach 23 | 7 10 4 1 1 Detach 2 | . 2 . . . Swap 9 | . 5 3 . 1 Drop 17 | . 6 11 . . Fire 110 | 2 86 17 . 5 Melee . | . . . . . Ram 4 | . . . . 4 Kick . | . . . . . Crush . | . . . . . Escape Stasis . | . . . . . Rewire . | . . . . . Trap . | . . . . . Miscellaneous . | . . . . . Route ------- -11/Scrapyard -10/Materials (discovered 5 exits: [*Mat x3] / *Min x2) -10/Mines -10/Exiles (discovered 2 exits: *Min x2) -9/Mines History --------- Turn | Location | Event 6 | -11/Scrapyard | Discovered new exit (range 16) 69 | -11/Scrapyard | Entered Materials 104 | -10/Materials | Discovered new exit (range 6) 318 | -10/Materials | Build established: Mutant 574 | -10/Materials | Discovered new exit (range 14) 825 | -10/Materials | Discovered new exit (range 10) 901 | -10/Materials | Lost 3 parts (1p2w) 1036 | -10/Materials | Repaired Lgt. Armor Plating 1185 | -10/Materials | Central database locked down 1185 | -10/Materials | Central database locked down 1253 | -10/Materials | Discovered new exit (range 12) 1563 | -10/Materials | Discovered new exit (range 12) 1617 | -10/Materials | Entered Mines 1626 | -10/Mines | Received a Rocket Launcher from a helpful Derelict 1732 | -10/Mines | Found the Drone Emporium 1749 | -10/Mines | Found Prototype Device 1868 | -10/Mines | Met a Derelict shopkeep closing up shop 2144 | -10/Mines | Deemed a non-threat by the Exiles lab entrance 2144 | -10/Mines | Discovered new exit (range 5) 2256 | -10/Mines | Entered Exiles 2257 | -10/Exiles | Identified exit to Mines 2298 | -10/Exiles | Met 8R-AWN 2344 | -10/Exiles | Met EX-HEX 2481 | -10/Exiles | Met EX-BIN 2508 | -10/Exiles | Met EX-DEC 2545 | -10/Exiles | Visited The Gauntlet 2705 | -10/Exiles | Learned location of Zion (-7) 3050 | -10/Exiles | Aligned with FarCom system 3051 | -10/Exiles | Given EX-Vault access code 3079 | -10/Exiles | Opened EX-Vault 3092 | -10/Exiles | Found Prototype Special Weapon 3093 | -10/Exiles | Identified Field Lobotomy Kit 3175 | -10/Exiles | Warned to stay clear of 0b10 Research branches 3460 | -10/Exiles | Left Exiles lab with Field Lobotomy Kit 3460 | -10/Exiles | Entered Mines 3613 | -9/Mines | Assembled infested the area 3624 | -9/Mines | Learned location of 1 exit from Materials 3633 | -9/Mines | Core integrity fell below 50% 3636 | -9/Mines | Assimilated as-74690 with FLK Orb 3652 | -9/Mines | Core integrity fell below 20% 3668 | -9/Mines | Destroyed by as-34716 with Assembled Heavy Rifle Last Messages --------------- T-07 Excavator is excavating. as-87612 sneak attacks. as-74690 destroyed. The unstable cave ceiling collapses. T-07 Excavator is excavating. Knocked back. Destroyed Asb. Hover Unit. as-00592 destroyed. Rocket Launcher destroyed. T-07 Excavator is excavating. Lgt. Ion Engine destroyed. System corrupted by crushing effect (+1). T-07 Excavator destroyed. Field Lobotomy Kit destroyed. Knocked back. Aluminum Leg destroyed. as-27287 destroyed. Slammed into as-87612. as-24833 destroyed. Slammed into as-87612. Map ----- +----------------------------------------------------+ | | | | | | | | | | | | | | | | | | | ??????????????????????????????????????? | | ??????????????????????????????????????? | | ??????????????????????????????????????? | | ???????????###????##??????????????????? | | ???????????? #### ??????????????????? | | ???????????? ???????????????????? | | ???????????? ???????????????????? | | ???????????? ????????????????????? | | ????????????? ????????????????????? | | ????????????? ???????###???????????? | | ????????????? ??????? #???????????? | | ????????????? ????????# #???????????? | | ?????????????# ????????# #???????????? | | ?????????????# #?####???# #???????????? | | ??????????#### ### ##### #??????????? | | ??????????# *a a ## ###???????? | | ??????????#=%!@ a #?##### % | | ??????????####### a % | | ????????????????## a%%% | | ?????????????????##### ## # | | ?????????????????????# ### ##### | | ?????????????????????# ## #????? | | ?????????????????????######## #????? | | ???????????????????????##### #????? | | ??????????????????????## #????# | | ??????????????????????# ##???# | | ?????????????????# ## ##??# | | ?????????????????# #?## ### | | ?????????????????## ???# | | ??????????????????## ????# | | ?????????????###????# ?????## | | ????????????## ##??????????## | | ????????????# ##????????## | | ????????????## #???????## | | ?????????????## ##??????# ### | | ??????????????### ####???# #?? | | ????????????????## ##??# ### | | ?????????????????## #### | | ??????????????????## ## | | ???????????????????## | | ????????????????????### ## | +----------------------------------------------------+ Best States ------------- Heat Dissipation 25 Energy Generation 10 Energy Capacity 125 Matter Stores 300 Matter Capacity 300 Sight Range 16 Terrain Scan Range 16 Terrain Scan Density 110 Armor Coverage 150 Evasion (%) 50 Recoil Reduction 1 Item Schematics ----------------- None Robot Schematics ------------------ None Fabricated ------------ Nothing Alien Tech Used ----------------- None Achievements -------------- Tourist Challenges ------------ None Game ------ Seed TerrabombIonicFacilitator Manual? 0 Play Time 01:02:25 Cumulative 4.8 hours Start 2021.11.11 @ 18:54:54 End 2021.11.11 @ 20:32:29 Sessions 1 Manual Loads 0 Difficulty Rogue Special Mode None Game No. 6 Rogue 6 Adventurer 0 Explorer 0 Win Type - Total 0 Types 0/0/0/0/0/0/0/0/0 Lore% 11 Gallery% 7 Achievement% 7 Wizard Run 0 Options --------- ASCII 0 Keyboard 0 Movement Mouse Keybinds 0 Fullscreen 1 Font 18/Terminus Map View 76x50 Tactical HUD 0 Map Filters NONE Filters NONE Steam 1 RUN: f0ec54f8-ed93-41fb-95e6-9c5c303da231